bitfinex-derivatives/quotes_BTCF0:USTF0_20251030
["timestamp","ask_amount","ask_price","bid_price","bid_amount"]
[1761847448652,0.05782,107510.0,107500.0,0.23907775]
[1761847448849,0.76142,107510.0,107500.0,0.23907775]
[1761847449054,0.40062,107510.0,107500.0,0.23907775]
[1761847449242,0.76142,107510.0,107500.0,0.4336855]
[1761847449856,0.76142,107510.0,107500.0,0.4356855]
[1761847450251,0.76142,107510.0,107500.0,0.4336855]
[1761847450454,0.74142,107510.0,107500.0,0.4346855]
[1761847450656,0.76142,107510.0,107500.0,0.4376855]
[1761847451053,0.76142,107510.0,107500.0,0.04847]
[1761847451257,0.76142,107510.0,107500.0,0.4376855]
[1761847451555,0.76142,107510.0,107500.0,0.4356855]
[1761847452556,0.74142,107510.0,107500.0,0.4356855]
[1761847452763,0.40062,107510.0,107500.0,0.4356855]
[1761847453055,0.38062,107510.0,107500.0,0.4356855]
[1761847453450,0.38062,107510.0,107500.0,0.04647]
[1761847453646,0.38062,107510.0,107500.0,0.4356855]
[1761847454158,0.40062,107510.0,107500.0,0.4356855]
[1761847455056,0.04485,107510.0,107500.0,0.8094355]
[1761847455257,0.36765,107510.0,107500.0,0.8094355]
[1761847456159,0.36765,107510.0,107500.0,0.42022]
[1761847456355,0.36765,107510.0,107500.0,0.8094355]
[1761847458259,0.38142,107510.0,107500.0,0.7964855]
[1761847458448,0.40142,107510.0,107500.0,0.60187775]
[1761847458952,0.40142,107510.0,107500.0,0.7964855]
[1761847460168,0.42405062,107510.0,107500.0,0.7964855]
[1761847460655,0.42405062,107510.0,107500.0,0.4356855]
[1761847461259,0.42405062,107510.0,107500.0,0.24107775]
[1761847461967,0.42405062,107510.0,107500.0,0.4356855]
[1761847463368,0.45405062,107510.0,107500.0,0.4356855]
[1761847463867,0.40405062,107510.0,107500.0,0.24107775]
[1761847464068,0.42405062,107510.0,107500.0,0.24107775]
[1761847464566,0.42405062,107510.0,107500.0,0.04647]
[1761847464971,0.42405062,107510.0,107500.0,0.24107775]
[1761847465666,0.78485062,107510.0,107500.0,0.24107775]
[1761847466067,0.78765062,107510.0,107500.0,0.02433]
[1761847466276,0.78765062,107510.0,107480.0,0.23950775]
[1761847466277,0.04562,107490.0,107480.0,0.23950775]
[1761847466467,0.61864862,107490.0,107480.0,0.19460775]
[1761847466662,0.57302862,107490.0,107480.0,0.21752775]
[1761847466972,0.02289,107480.0,107470.0,0.3608]
[1761847467171,0.05859,107480.0,107470.0,0.60030775]
[1761847467372,0.07859,107480.0,107470.0,0.60030775]
[1761847468180,0.07859,107480.0,107470.0,0.60430775]
[1761847468480,0.08819584,107480.0,107470.0,0.60430775]
[1761847468667,0.08819584,107480.0,107470.0,0.4097]
[1761847468868,0.08819584,107480.0,107470.0,0.60430775]
[1761847469078,0.08819584,107480.0,107470.0,0.61030775]
[1761847470278,0.06819584,107480.0,107470.0,0.61030775]
[1761847470485,0.05522584,107480.0,107470.0,0.62203775]
[1761847470781,0.05522584,107480.0,107470.0,0.8166455]
[1761847472980,0.69657,107490.0,107480.0,0.0449]
[1761847472981,0.74219,107490.0,107480.0,0.0449]
[1761847473291,0.81481637,107490.0,107480.0,0.4452555]
[1761847473977,0.78481637,107490.0,107480.0,0.4452555]
[1761847474374,0.78481637,107490.0,107480.0,0.4341155]
[1761847474375,0.76481637,107490.0,107480.0,0.4341155]
[1761847474979,0.76481637,107490.0,107480.0,0.4361155]
[1761847475171,0.07779157,107490.0,107480.0,0.4472555]
[1761847475380,0.3779652,107490.0,107480.0,0.8080555]
[1761847475588,0.3779652,107490.0,107480.0,0.8120555]
[1761847476379,0.4109352,107490.0,107480.0,0.42284]
[1761847476573,0.3909352,107490.0,107480.0,0.8120555]
[1761847476773,0.4109352,107490.0,107480.0,0.4512555]
[1761847477379,0.3909352,107490.0,107480.0,0.4401155]
[1761847477580,0.4335685,107490.0,107480.0,0.0509]
[1761847477780,0.4335685,107490.0,107480.0,0.24550775]
[1761847478779,0.62817625,107490.0,107480.0,0.24550775]
[1761847479784,0.62817625,107490.0,107480.0,0.22352775]
[1761847479980,0.62817625,107490.0,107480.0,0.24550775]
[1761847480878,0.4335685,107490.0,107480.0,0.24550775]
[1761847481380,0.4335685,107490.0,107480.0,0.0509]
[1761847482287,0.4335685,107490.0,107480.0,0.24582428]
[1761847482476,0.7943685,107490.0,107480.0,0.24582428]
[1761847482983,0.7943685,107490.0,107480.0,0.006]
[1761847482984,1.0843685,107490.0,107480.0,0.006]
[1761847483189,1.27929278,107490.0,107480.0,0.006]
[1761847485186,1.28209278,107490.0,107480.0,0.006]
[1761847485490,1.27929278,107490.0,107480.0,0.006]
[1761847487489,1.0843685,107490.0,107480.0,0.0509]
[1761847488284,1.0843685,107490.0,107480.0,0.006]
[1761847489285,1.27929278,107490.0,107480.0,0.006]
[1761847490391,1.0843685,107490.0,107480.0,0.006]
[1761847490781,1.27929278,107490.0,107480.0,0.006]
[1761847491786,1.01929278,107490.0,107480.0,0.006]
[1761847492393,0.8243685,107490.0,107480.0,0.006]
[1761847492787,1.01929278,107490.0,107480.0,0.006]
[1761847493289,0.8242885,107490.0,107480.0,0.006]
[1761847493485,1.0642885,107490.0,107480.0,0.006]
[1761847493686,1.25921278,107490.0,107480.0,0.006]
[1761847493886,1.0642885,107490.0,107480.0,0.006]
[1761847494088,1.25921278,107490.0,107480.0,0.006]
[1761847495096,1.25921278,107490.0,107480.0,0.02795]
[1761847495291,1.25921278,107490.0,107480.0,0.006]
[1761847495797,1.0642885,107490.0,107480.0,0.006]
[1761847496588,1.0642885,107490.0,107480.0,0.05]
[1761847497096,1.0642885,107490.0,107480.0,0.006]
[1761847497294,1.0642885,107490.0,107480.0,0.02795]
[1761847497491,1.0642885,107490.0,107480.0,0.05]
[1761847497896,1.0642485,107490.0,107480.0,0.006]
[1761847498196,1.28422104,107490.0,107480.0,0.006]
[1761847500589,1.08929676,107490.0,107480.0,0.006]
[1761847500900,1.08929676,107490.0,107480.0,0.24492428]
[1761847501097,0.7034485,107490.0,107480.0,0.24492428]
[1761847501300,0.1107685,107490.0,107480.0,0.60572428]
[1761847501492,0.4334485,107490.0,107480.0,0.60572428]
[1761847502204,0.4134485,107490.0,107480.0,0.60572428]
[1761847502389,0.60277247,107510.0,107480.0,0.69076508]
[1761847502390,0.01377,107510.0,107480.0,0.69076508]
[1761847502595,0.46311933,107510.0,107500.0,0.23892428]
[1761847502897,0.42499933,107510.0,107500.0,0.044]
[1761847503604,0.78579933,107510.0,107500.0,0.044]
[1761847503793,0.05925,107500.0,107490.0,0.044]
[1761847503997,0.05925,107490.0,107480.0,0.65]
[1761847504198,0.43193,107490.0,107480.0,0.646]
[1761847504398,0.43193,107490.0,107480.0,0.644]
[1761847504699,0.45470053,107490.0,107480.0,0.644]
[1761847505107,0.42470053,107490.0,107480.0,0.65]
[1761847505294,0.42470053,107490.0,107480.0,0.05]
[1761847505808,0.42470053,107490.0,107480.0,0.006]
[1761847506292,0.61962481,107490.0,107480.0,0.006]
[1761847506692,1.21042481,107490.0,107480.0,0.006]
[1761847507405,1.01550053,107490.0,107480.0,0.05]
[1761847507594,0.78546053,107490.0,107480.0,0.24492428]
[1761847508103,0.40466053,107490.0,107480.0,0.61745428]
[1761847509294,0.39118053,107490.0,107480.0,1.21745428]
[1761847509494,0.39118053,107490.0,107480.0,1.22025428]
[1761847509894,0.39118053,107490.0,107480.0,1.21745428]
[1761847510095,0.39118053,107490.0,107480.0,1.02253]
[1761847510404,0.39118053,107490.0,107480.0,1.21745428]
[1761847512204,0.36841,107490.0,107480.0,1.21745428]
[1761847512406,1.79610515,107490.0,107480.0,0.006]
[1761847512602,1.60118087,107490.0,107480.0,0.006]
[1761847512807,0.05916,107460.0,107450.0,0.4048]
[1761847513003,0.05916,107460.0,107450.0,0.41775]
[1761847513302,0.05916,107460.0,107450.0,0.61267428]
[1761847514099,0.06872216,107460.0,107450.0,0.61267428]
[1761847514299,0.06872216,107460.0,107450.0,0.61567428]
[1761847514606,0.06872216,107460.0,107450.0,0.61667428]
[1761847514996,0.06872216,107460.0,107450.0,0.60372428]
[1761847515201,0.06872216,107460.0,107450.0,0.4088]
[1761847519204,0.08872216,107460.0,107450.0,0.4088]
[1761847519406,0.08872216,107460.0,107450.0,0.048]
[1761847520215,0.08872216,107460.0,107450.0,0.004]
[1761847520414,0.11145594,107460.0,107450.0,0.004]
[1761847520709,0.11145594,107460.0,107450.0,0.02612]
[1761847520907,0.11145594,107460.0,107450.0,0.004]
[1761847521112,0.43145594,107460.0,107450.0,0.004]
[1761847521709,0.79325594,107460.0,107450.0,0.003]
[1761847522306,0.05789,107450.0,107440.0,0.36087102]
[1761847522508,0.40049,107450.0,107440.0,0.36087102]
[1761847523213,0.40049,107450.0,107440.0,0.40394102]
[1761847524219,0.38049,107450.0,107440.0,0.40394102]
[1761847524513,0.04417,107450.0,107440.0,0.82371209]
[1761847524715,0.344,107450.0,107440.0,1.42371209]
[1761847524916,0.344,107450.0,107440.0,1.51679789]
[1761847525112,0.3226,107450.0,107440.0,1.51959789]
[1761847525417,0.34457,107450.0,107440.0,1.42371209]
[1761847525602,0.36734,107450.0,107440.0,1.42371209]
[1761847525803,0.3226,107450.0,107440.0,0.82371209]
[1761847526003,0.3226,107450.0,107440.0,0.82651209]
[1761847526414,0.3226,107450.0,107440.0,0.91959789]
[1761847526915,0.37690216,107460.0,107450.0,0.05602]
[1761847527117,0.37690216,107460.0,107450.0,0.82545107]
[1761847527818,0.36734,107460.0,107450.0,0.82545107]
[1761847528015,0.13460047,107470.0,107460.0,0.04307]
[1761847528216,0.45720047,107470.0,107460.0,0.40387]
[1761847528605,0.13460047,107470.0,107460.0,0.40387]
[1761847528812,0.45720047,107470.0,107460.0,0.40387]
[1761847529521,0.45920047,107470.0,107460.0,0.40387]
[1761847529906,0.84000047,107470.0,107460.0,0.04307]
[1761847530112,0.47920047,107470.0,107460.0,0.04307]
[1761847530410,0.48020047,107470.0,107460.0,0.04307]
[1761847531111,0.46020047,107470.0,107460.0,0.04307]
[1761847531311,0.48020047,107470.0,107460.0,0.04307]
[1761847532715,0.46020047,107470.0,107460.0,0.04307]
[1761847533321,0.48020047,107470.0,107460.0,0.04307]
[1761847534118,0.46020047,107470.0,107460.0,0.04307]
[1761847534319,0.48020047,107470.0,107460.0,0.04307]
[1761847535423,0.48020047,107470.0,107460.0,0.40387]
[1761847536312,0.47920047,107470.0,107460.0,0.40387]
[1761847537125,0.47720047,107470.0,107460.0,0.40387]
[1761847537326,0.45720047,107470.0,107460.0,0.40387]
[1761847538126,0.45920047,107470.0,107460.0,0.40387]
[1761847538427,0.46020047,107470.0,107460.0,0.40387]
[1761847539322,0.46020047,107470.0,107460.0,0.4969385]
[1761847540427,0.46020047,107470.0,107460.0,0.40387]
[1761847541719,0.39345047,107470.0,107460.0,0.40387]
[1761847542518,0.41345047,107470.0,107460.0,0.40387]
[1761847542720,0.39345047,107470.0,107460.0,0.40387]
[1761847544732,0.41620645,107470.0,107460.0,0.40387]
[1761847546132,0.43620645,107470.0,107460.0,0.04307]
[1761847547835,0.41620645,107470.0,107460.0,0.04307]
[1761847548033,0.41620645,107470.0,107460.0,0.41418]
[1761847548333,0.41620645,107470.0,107460.0,0.65790662]
[1761847549926,0.39297598,107470.0,107460.0,0.75097512]
[1761847550127,0.39297598,107470.0,107460.0,0.65790662]
[1761847550323,0.40234436,107470.0,107460.0,0.65790662]
[1761847550521,0.40234436,107470.0,107460.0,0.75097512]
[1761847550731,0.39297598,107470.0,107460.0,0.75097512]
[1761847550938,0.40260316,107470.0,107460.0,0.5072485]
[1761847551129,0.39297598,107470.0,107460.0,0.75097512]
[1761847551427,0.003,107470.0,107460.0,0.75377512]
[1761847551824,0.003,107470.0,107460.0,1.07625512]
[1761847552426,0.06675,107480.0,107470.0,0.1504398]
[1761847552630,0.06675,107480.0,107470.0,0.75496642]
[1761847552821,0.08828,107480.0,107470.0,0.75496642]
[1761847553023,0.10936,107480.0,107470.0,0.75496642]
[1761847553533,0.10936,107480.0,107470.0,0.66190662]
[1761847554436,0.13265705,107480.0,107470.0,0.66190662]
[1761847554821,0.10936,107480.0,107470.0,0.75496642]
[1761847555431,0.10936,107480.0,107470.0,0.66190662]
[1761847555932,0.10936,107480.0,107470.0,0.75496662]
[1761847556431,0.10936,107480.0,107470.0,0.66190662]
[1761847556738,0.12311,107480.0,107470.0,0.66190662]
[1761847557138,0.13274172,107480.0,107470.0,0.66190662]
[1761847557335,0.13274172,107480.0,107470.0,0.41818]
[1761847557636,0.13274172,107480.0,107470.0,0.61310099]
[1761847558028,0.13274172,107480.0,107470.0,0.74767099]
[1761847559137,0.13274172,107480.0,107470.0,0.75940099]
[1761847560232,0.13274172,107480.0,107470.0,0.74767099]
[1761847560433,0.32766271,107480.0,107470.0,0.74767099]
[1761847560643,0.13274172,107480.0,107470.0,0.74767099]
[1761847561328,0.32766271,107480.0,107470.0,0.74767099]
[1761847561532,0.35065409,107480.0,107470.0,0.74767099]
[1761847561838,0.37065409,107480.0,107470.0,0.19195]
[1761847562030,0.90637508,107480.0,107450.0,0.5071]
[1761847562232,0.90637508,107480.0,107440.0,0.40652102]
[1761847562233,0.05636,107450.0,107440.0,0.40652102]
[1761847562437,0.37876,107450.0,107440.0,0.60144201]
[1761847562743,0.59368099,107450.0,107440.0,0.38409102]
[1761847562934,0.57368099,107450.0,107440.0,0.38409102]
[1761847563133,0.42175779,107450.0,107440.0,0.60144201]
[1761847563330,0.40175779,107450.0,107440.0,0.60144201]
[1761847563536,0.34539779,107450.0,107440.0,0.807503]
[1761847563730,0.36501,107450.0,107440.0,0.807503]
[1761847563936,0.36501,107450.0,107440.0,0.808503]
[1761847564833,0.37876,107450.0,107440.0,0.808503]
[1761847565034,0.05636,107450.0,107440.0,0.60244201]
[1761847565245,0.57368099,107450.0,107440.0,0.60444201]
[1761847566441,0.37876,107450.0,107440.0,0.892449]
[1761847566647,0.36501,107450.0,107440.0,0.51374702]
[1761847566839,0.37876,107460.0,107450.0,0.05596]
[1761847567040,0.04261,107460.0,107450.0,0.89967928]
[1761847567240,0.04261,107460.0,107450.0,0.70475829]
[1761847567446,0.04261,107460.0,107450.0,0.5098373]
[1761847567635,0.33615,107470.0,107450.0,0.89967928]
[1761847567842,0.37876,107470.0,107460.0,0.79629198]
[1761847568048,0.37876,107470.0,107460.0,0.60137099]
[1761847568549,0.04261,107470.0,107460.0,0.90231058]
[1761847568743,0.36501,107470.0,107460.0,0.80924198]
[1761847568940,0.36501,107470.0,107460.0,0.90231058]
[1761847569245,0.3224,107470.0,107460.0,0.90231058]
[1761847569446,0.07630408,107480.0,107470.0,0.05738]
[1761847569447,0.42023408,107480.0,107470.0,0.05738]
[1761847569645,0.44131408,107480.0,107470.0,0.61310099]
[1761847570146,0.10936,107480.0,107470.0,0.61310099]
[1761847570847,0.11036,107480.0,107470.0,0.61310099]
[1761847571046,0.12411,107480.0,107470.0,0.61310099]
[1761847571244,0.31903099,107480.0,107470.0,0.60137099]
[1761847571441,0.12611,107480.0,107470.0,0.40645]
[1761847571754,0.13581927,107480.0,107470.0,0.40645]
[1761847573039,0.13581927,107480.0,107470.0,0.04565]
[1761847573243,0.05636,107470.0,107460.0,0.40645]
[1761847573445,0.37872,107470.0,107460.0,0.40645]
[1761847574348,0.37872,107470.0,107460.0,0.04565]
[1761847574547,0.37872,107470.0,107460.0,0.40645]
[1761847574739,0.37872,107470.0,107460.0,0.04565]
[1761847574943,0.37872,107470.0,107460.0,0.40645]
[1761847575451,0.45583931,107470.0,107460.0,0.40645]
[1761847575956,0.38172,107470.0,107460.0,0.40645]
[1761847576452,0.40172,107470.0,107460.0,0.0457]
[1761847576656,0.05695,107460.0,107450.0,0.40497]
[1761847576953,0.35062861,107460.0,107450.0,0.02169]
[1761847577752,0.10695,107460.0,107450.0,0.02169]
[1761847578254,0.05695,107460.0,107450.0,0.04417]
[1761847578854,0.05695,107460.0,107450.0,0.40497]
[1761847579056,0.07695,107460.0,107450.0,0.40497]
[1761847579258,0.05695,107460.0,107450.0,0.04417]
[1761847580558,0.07695,107460.0,107450.0,0.04417]
[1761847581847,0.05732,107450.0,107440.0,0.40579102]
[1761847582054,0.37968,107450.0,107440.0,0.40579102]
[1761847583058,0.37968,107450.0,107440.0,0.40779102]
[1761847584358,0.37968,107450.0,107440.0,0.40879102]
[1761847586154,0.36688,107450.0,107440.0,0.41993102]
[1761847586460,0.37968,107450.0,107440.0,0.40879102]
[1761847588662,0.39968,107450.0,107440.0,0.40879102]
[1761847589157,0.64335861,107450.0,107440.0,0.36387102]
[1761847589951,0.67335861,107450.0,107440.0,0.00307102]
[1761847590151,1.31415861,107450.0,107440.0,0.00307102]
[1761847590359,1.33716901,107450.0,107440.0,0.00307102]
[1761847590861,1.33996901,107450.0,107440.0,0.00307102]
[1761847591060,1.33716901,107450.0,107440.0,0.00307102]
[1761847593469,1.28860849,107450.0,107440.0,0.00307102]
[1761847593658,1.48372658,107450.0,107440.0,0.00307102]
[1761847593859,1.48652658,107450.0,107440.0,0.00307102]
[1761847594064,1.4865976,107450.0,107410.0,0.3608]
[1761847594367,0.25243809,107420.0,107410.0,0.40572]
[1761847594560,0.78991618,107420.0,107410.0,0.3608]
[1761847594762,0.39968,107420.0,107410.0,0.38407]
[1761847594960,0.39968,107420.0,107410.0,0.04492]
[1761847595161,0.05732,107410.0,107400.0,0.60083809]
[1761847595366,0.27243809,107410.0,107400.0,0.40572]
[1761847595560,0.25243809,107410.0,107400.0,0.40572]
[1761847595865,0.27243809,107410.0,107400.0,0.40572]
[1761847596461,0.25243809,107410.0,107400.0,0.41072]
[1761847596657,0.25243809,107410.0,107400.0,0.60583809]
[1761847596859,0.25243809,107410.0,107400.0,0.41072]
[1761847597161,0.27243809,107410.0,107400.0,0.38907]
[1761847597467,0.30136974,107410.0,107400.0,0.41072]
[1761847597663,0.3106947,107410.0,107400.0,0.41272]
[1761847597866,0.3306947,107410.0,107400.0,0.41272]
[1761847598067,0.08664496,107410.0,107400.0,0.40972]
[1761847598263,0.08664496,107410.0,107400.0,0.004]
[1761847598571,0.99446202,107410.0,107400.0,0.004]
[1761847599070,0.05732,107400.0,107390.0,0.40572]
[1761847599371,0.39979102,107400.0,107390.0,0.3608]
[1761847599670,0.05732,107390.0,107380.0,0.40572]
[1761847599869,0.32136974,107390.0,107380.0,0.40572]
[1761847600073,0.32136974,107390.0,107380.0,0.41908537]
[1761847600663,0.07732,107390.0,107380.0,0.41908537]
[1761847601167,0.64376974,107390.0,107380.0,0.01336537]
[1761847601676,0.71653663,107390.0,107380.0,0.03663537]
[1761847601976,0.71653663,107390.0,107380.0,0.03963537]
[1761847602274,0.71653663,107390.0,107380.0,0.04163537]
[1761847602870,0.71653663,107390.0,107380.0,0.06328537]
[1761847603072,0.71653663,107390.0,107380.0,0.01836537]
[1761847603270,1.07733663,107390.0,107380.0,0.01836537]
[1761847603468,0.83328689,107390.0,107380.0,0.01836537]
[1761847603667,1.00456974,107390.0,107380.0,0.01836537]
[1761847603868,0.98456974,107390.0,107380.0,0.01836537]
[1761847604075,1.32456974,107390.0,107380.0,0.01836537]
[1761847604485,1.32456974,107390.0,107380.0,0.01636537]
[1761847604680,1.32456974,107390.0,107380.0,0.01536537]
[1761847605479,0.05732,107390.0,107380.0,0.42108537]
[1761847605671,0.01287102,107400.0,107390.0,0.04492]
[1761847605672,0.05739102,107400.0,107390.0,0.04492]
[1761847605978,0.36703102,107400.0,107390.0,0.41745]
[1761847606369,0.36707102,107400.0,107390.0,0.5105793]
[1761847606565,0.36707102,107400.0,107390.0,0.41745]
[1761847607468,0.37987102,107400.0,107390.0,0.41745]
[1761847607665,0.38087102,107400.0,107390.0,0.40572]
[1761847607868,0.40087102,107400.0,107390.0,0.40572]
[1761847608068,0.40087102,107400.0,107390.0,0.04492]
[1761847608370,0.40087102,107400.0,107390.0,0.40572]
[1761847608569,0.40087102,107400.0,107390.0,0.04492]
[1761847608763,0.40087102,107400.0,107390.0,0.02165]
[1761847608968,0.05732,107390.0,107380.0,0.04492]
[1761847609168,0.05732,107390.0,107380.0,0.41910094]
[1761847610179,0.09732,107390.0,107380.0,0.05830094]
[1761847610366,0.45812,107390.0,107380.0,0.03665094]
[1761847610670,0.10732,107390.0,107380.0,0.01438094]
[1761847610971,0.10732,107390.0,107380.0,0.03865094]
[1761847611178,0.4298,107390.0,107380.0,0.06030094]
[1761847612176,0.05732,107390.0,107380.0,0.06030094]
[1761847612476,0.3798,107390.0,107380.0,0.42110094]
[1761847614365,0.3998,107390.0,107380.0,0.06030094]
[1761847614564,0.3798,107390.0,107380.0,0.42110094]
[1761847614771,0.3798,107390.0,107380.0,0.43283094]
[1761847615072,0.05749102,107400.0,107390.0,0.04487]
[1761847615273,0.36717102,107400.0,107390.0,0.41862]
[1761847615671,7.102e-05,107400.0,107390.0,0.41862]
[1761847615871,0.34396102,107400.0,107390.0,0.41862]
[1761847616080,0.36717102,107400.0,107390.0,0.41862]
[1761847616979,0.36817102,107400.0,107390.0,0.41862]
[1761847619381,0.38109102,107400.0,107390.0,0.41862]
[1761847620480,0.38109102,107400.0,107390.0,0.40567]
[1761847620676,0.05861102,107400.0,107390.0,0.40567]
[1761847620875,0.38109102,107400.0,107390.0,0.40567]
[1761847621379,0.40400977,107400.0,107390.0,0.40567]
[1761847623876,0.39108977,107400.0,107390.0,0.41862]
[1761847624683,0.02398977,107400.0,107390.0,0.92099402]
[1761847624883,0.15596431,107430.0,107420.0,0.04487]
[1761847625076,0.04794423,107430.0,107420.0,0.4174]
[1761847625276,0.40297212,107430.0,107420.0,0.4174]
[1761847625581,0.40297212,107430.0,107420.0,0.40567]
[1761847625781,0.42297212,107430.0,107420.0,0.04487]
[1761847625982,0.40297212,107430.0,107420.0,0.40567]
[1761847626288,0.41347335,107430.0,107420.0,0.04487]
[1761847626780,0.41947335,107430.0,107420.0,0.04487]
[1761847626990,0.42147335,107430.0,107420.0,0.04487]
[1761847627281,0.42147335,107430.0,107420.0,0.40567]
[1761847627481,0.09299335,107430.0,107420.0,0.40567]
[1761847627688,0.08407335,107430.0,107420.0,0.4174]
[1761847627989,0.40651335,107430.0,107420.0,0.4174]
[1761847628182,0.07457212,107430.0,107420.0,0.4174]
[1761847628387,0.02995212,107430.0,107420.0,0.4174]
[1761847628690,0.007,107430.0,107420.0,0.4174]
[1761847628881,0.02841,107430.0,107420.0,0.4174]
[1761847629485,0.007,107430.0,107420.0,0.4174]
[1761847629885,0.005,107430.0,107420.0,0.4174]
[1761847630086,0.01427409,107430.0,107420.0,0.4174]
[1761847630475,0.01227409,107430.0,107420.0,0.4174]
[1761847630680,0.06981409,107430.0,107420.0,0.40567]
[1761847631488,0.06981409,107430.0,107420.0,0.55197]
[1761847633894,0.02141,107410.0,107400.0,0.3608]
[1761847634080,0.05754,107410.0,107400.0,0.3608]
[1761847634280,0.05754,107410.0,107400.0,0.40567]
[1761847634787,0.08044513,107410.0,107400.0,0.40567]
[1761847635988,0.08044513,107410.0,107400.0,0.4157868]
[1761847636180,0.08044513,107410.0,107400.0,0.4167868]
[1761847636779,0.08144513,107410.0,107400.0,0.4167868]
[1761847637475,0.08344513,107410.0,107400.0,0.4157868]
[1761847637781,0.08344513,107410.0,107400.0,0.41607048]
[1761847638291,0.08344513,107410.0,107400.0,0.42721048]
[1761847638491,0.02590513,107410.0,107400.0,0.42721048]
[1761847638682,0.003,107410.0,107400.0,1.1588551]
[1761847638882,0.003,107410.0,107400.0,1.2547758]
[1761847639790,0.07057,107420.0,107410.0,0.46344462]
[1761847639987,0.07057,107420.0,107410.0,0.82424462]
[1761847640681,0.07057,107420.0,107410.0,0.8346451]
[1761847640876,0.0935,107420.0,107410.0,1.02540048]
[1761847641082,0.0935,107420.0,107410.0,1.34780048]
[1761847641486,0.12857,107420.0,107410.0,0.74780048]
[1761847641791,0.07057,107420.0,107410.0,0.74780048]
[1761847642991,0.07257,107420.0,107410.0,0.74780048]
[1761847643289,0.09563,107420.0,107410.0,0.74780048]
[1761847643694,0.09563,107420.0,107410.0,0.42540048]
[1761847643891,0.07357,107420.0,107410.0,0.74780048]
[1761847644588,0.11765,107420.0,107410.0,0.74780048]
[1761847645489,0.13068,107420.0,107410.0,0.41509048]
[1761847648895,0.15348713,107420.0,107410.0,0.41509048]
[1761847649292,0.17348713,107420.0,107410.0,0.05429048]
[1761847649493,0.15348713,107420.0,107410.0,0.05429048]
[1761847649685,1.09628713,107420.0,107390.0,0.3608]
[1761847649882,0.05711,107370.0,107360.0,0.00011302]
[1761847650081,0.05711,107350.0,107340.0,0.02542]
[1761847650296,0.05711,107350.0,107340.0,0.03894426]
[1761847650496,0.41791,107350.0,107340.0,0.03894426]
[1761847651092,0.41800485,107350.0,107340.0,0.03894426]
[1761847651289,0.41800485,107350.0,107340.0,0.02542]
[1761847652104,0.36089485,107350.0,107340.0,0.02542]
[1761847652292,9.485e-05,107350.0,107340.0,0.89143732]
[1761847652591,9.485e-05,107350.0,107340.0,0.89343732]
[1761847653385,9.485e-05,107350.0,107340.0,0.80526462]
[1761847653591,9.485e-05,107350.0,107340.0,0.80246462]
[1761847654103,9.485e-05,107350.0,107340.0,0.89843732]
[1761847654902,9.485e-05,107350.0,107340.0,1.04473732]
[1761847656595,9.485e-05,107350.0,107340.0,0.95156462]
[1761847656804,9.485e-05,107350.0,107340.0,0.53952]
[1761847657212,9.485e-05,107350.0,107340.0,0.86612]
[1761847658406,9.485e-05,107350.0,107340.0,0.86888]
[1761847658715,9.485e-05,107350.0,107340.0,1.37129732]
[1761847659020,9.485e-05,107350.0,107340.0,0.97129986]
[1761847659218,9.485e-05,107350.0,107340.0,1.38054448]
[1761847659514,0.49195734,107380.0,107370.0,0.02542]
[1761847660119,0.49195734,107380.0,107370.0,0.01271]
[1761847660320,0.49195734,107380.0,107360.0,0.32656]
[1761847660321,0.04408,107370.0,107360.0,0.35198]
[1761847660509,0.40488,107370.0,107360.0,0.35198]
[1761847660710,0.40488,107370.0,107360.0,0.02542]
[1761847660905,0.02306,107350.0,107340.0,0.52481]
[1761847661113,0.04408,107350.0,107340.0,0.53752]
[1761847661315,0.04408,107350.0,107340.0,0.86392]
[1761847661513,0.04408,107330.0,107320.0,0.38622]
[1761847662111,0.37383,107340.0,107330.0,0.01271]
[1761847662414,0.41791,107340.0,107330.0,0.02542]
[1761847663910,0.41791,107340.0,107330.0,0.02942]
[1761847664417,0.41791,107340.0,107330.0,0.004]
[1761847665820,0.41791,107340.0,107330.0,0.02942]
[1761847666114,0.41791,107340.0,107330.0,0.005]
[1761847666618,0.49150799,107340.0,107330.0,0.02642]
[1761847667012,0.81910799,107340.0,107330.0,0.02642]
[1761847667215,1.24835261,107340.0,107330.0,0.001]
[1761847667409,1.06349044,107340.0,107330.0,0.001]
[1761847667614,1.06349044,107340.0,107330.0,0.02642]
[1761847667615,0.81910799,107340.0,107330.0,0.02642]
[1761847668314,0.49150799,107340.0,107330.0,0.02642]
[1761847668522,0.81886799,107340.0,107330.0,0.02642]
[1761847669210,0.49150799,107340.0,107330.0,0.02642]
[1761847669405,0.81886799,107340.0,107330.0,0.02642]
[1761847669616,0.49150799,107340.0,107330.0,0.02642]
[1761847669824,0.81882799,107340.0,107330.0,0.02642]
[1761847670221,0.81882799,107340.0,107330.0,0.001]
[1761847670911,0.03609,107320.0,107310.0,0.01271]
[1761847671113,0.05711,107320.0,107310.0,0.02542]
[1761847671310,0.30149245,107320.0,107310.0,0.01271]
[1761847671517,0.04484,107310.0,107300.0,0.38622]
[1761847673014,0.04484,107310.0,107300.0,0.39822]
[1761847673321,0.05448729,107310.0,107300.0,0.39822]
[1761847675025,0.05448729,107310.0,107300.0,0.03742]
[1761847675224,0.05448729,107310.0,107300.0,0.03042]
[1761847675422,0.05448729,107310.0,107300.0,0.03542]
[1761847675923,0.05448729,107310.0,107300.0,0.03042]
[1761847676119,0.06823729,107310.0,107300.0,0.03342]
[1761847676327,0.05859,107310.0,107300.0,0.27780245]
[1761847676626,0.38567,107310.0,107300.0,0.03042]
[1761847677324,0.05859,107310.0,107300.0,0.03042]
[1761847677525,0.05859,107310.0,107300.0,0.4844276]
[1761847677822,0.39427663,107320.0,107310.0,0.02542]
[1761847678925,0.39427663,107320.0,107310.0,0.02642]
[1761847679330,0.77872712,107320.0,107310.0,0.02642]
[1761847679829,0.77872712,107320.0,107310.0,0.02742]
[1761847680530,0.77872712,107320.0,107310.0,0.002]
[1761847681129,0.77872712,107320.0,107290.0,0.93252974]
[1761847681130,0.02237,107300.0,107290.0,0.15911729]
[1761847681333,0.41029738,107300.0,107290.0,0.04769016]
[1761847681533,0.65467983,107300.0,107290.0,0.04769016]
[1761847681730,0.41029738,107300.0,107290.0,0.04769016]
[1761847682335,0.41029738,107300.0,107290.0,0.04224729]
[1761847683034,0.41029738,107300.0,107290.0,0.03924729]